[Event "MČR v bleskovém šachu družstev 2019"]
[Site "Teplice, Czech Republic"]
[Date "2019.09.14"]
[Round "2.10"]
[White "Vltavsky, Vladimir"]
[Black "Zacek, Petr"]
[Result "1-0"]
[TimeControl "3 mim. + 2 s"]
[BlackFideId "320501"]
[WhiteElo "2252"]
[BlackElo "2009"]

1. e4 {[%clk 00:03:02]} {[%emt 00:08:00]} c5 {[%clk 00:03:01]} {[%emt
00:00:07]} 2. Nf3 {[%clk 00:03:04]} {[%emt 00:00:01]} Nc6 {[%clk 00:03:02]}
{[%emt 00:00:02]} 3. c3 {[%clk 00:03:05]} e6 {[%clk 00:03:02]} {[%emt
00:00:02]} 4. d4 {[%clk 00:03:06]} cxd4 {[%clk 00:03:03]} {[%emt 00:00:01]} 5.
cxd4 {[%clk 00:03:07]} {[%emt 00:00:01]} d6 {[%clk 00:03:04]} 6. Nc3 {[%clk
00:03:07]} {[%emt 00:00:01]} Nf6 {[%clk 00:03:05]} {[%emt 00:00:01]} 7. Bd3
{[%clk 00:03:08]} {[%emt 00:00:01]} Be7 {[%clk 00:03:05]} {[%emt 00:00:01]} 8.
O-O {[%clk 00:03:09]} {[%emt 00:00:02]} O-O {[%clk 00:03:06]} {[%emt 00:00:01]}
9. Qe2 {[%clk 00:03:10]} a6 {[%clk 00:03:07]} {[%emt 00:00:02]} 10. Rd1 {[%clk
00:03:09]} {[%emt 00:00:03]} Qc7 {[%clk 00:03:07]} {[%emt 00:00:01]} 11. e5
{[%clk 00:03:07]} {[%emt 00:00:04]} dxe5 {[%clk 00:03:00]} {[%emt 00:00:09]} 12.
dxe5 {[%clk 00:03:08]} {[%emt 00:00:01]} Nd7 {[%clk 00:03:01]} {[%emt
00:00:01]} 13. Bf4 {[%clk 00:03:07]} {[%emt 00:00:03]} b5 {[%clk 00:02:56]}
{[%emt 00:00:07]} 14. Rac1 {[%clk 00:03:07]} {[%emt 00:00:02]} Qb6 {[%clk
00:02:52]} {[%emt 00:00:06]} 15. a3 {[%clk 00:02:46]} {[%emt 00:00:24]} Bb7
{[%clk 00:02:53]} {[%emt 00:00:01]} 16. Bxh7+ {[%clk 00:02:44]} {[%emt
00:00:04]} Kxh7 {[%clk 00:02:48]} {[%emt 00:00:07]} 17. Rxd7 {[%clk 00:02:45]}
{[%emt 00:00:01]} Rfd8 {[%clk 00:02:42]} {[%emt 00:00:08]} 18. Rcd1 {[%clk
00:02:40]} {[%emt 00:00:07]} Kg8 {[%clk 00:02:39]} {[%emt 00:00:05]} 19. Bg5
{[%clk 00:02:36]} {[%emt 00:00:06]} f6 {[%clk 00:01:53]} {[%emt 00:00:47]} 20.
exf6 {[%clk 00:02:33]} {[%emt 00:00:05]} gxf6 {[%clk 00:01:54]} {[%emt
00:00:01]} 21. Qxe6+ {[%clk 00:02:33]} {[%emt 00:00:02]} Kg7 {[%clk 00:01:54]}
{[%emt 00:00:02]} 22. Qxf6+ {[%clk 00:02:27]} {[%emt 00:00:08]} Kg8 {[%clk
00:01:51]} {[%emt 00:00:05]} 23. Qg6+ {[%clk 00:02:26]} {[%emt 00:00:02]} Nb8
{[%emt 00:00:08]} 1-0

[Event "MČR v bleskovém šachu družstev 2019"]
[Site "Teplice, Czech Republic"]
[Date "2019.09.14"]
[Round "2.11"]
[White "Ruzicka, Milos"]
[Black "Marsalek, Zdenek"]
[Result "0-1"]
[TimeControl "3 mim. + 2 s"]
[WhiteFideId "368784"]
[WhiteElo "1933"]
[BlackElo "2272"]

1. d4 {[%clk 00:03:04]} {[%emt 00:17:02]} d5 {[%clk 00:03:02]} {[%emt
00:00:03]} 2. c4 {[%clk 00:03:06]} c6 {[%clk 00:03:03]} 3. Nc3 {[%clk
00:03:07]} Nf6 {[%emt 00:00:02]} 4. Bg5 dxc4 {[%clk 00:03:03]} {[%emt
00:00:02]} 5. e3 {[%clk 00:03:00]} {[%emt 00:00:12]} Qb6 {[%clk 00:02:44]}
{[%emt 00:00:21]} 6. Bxc4 {[%clk 00:02:29]} {[%emt 00:00:33]} Qxb2 {[%clk
00:02:36]} {[%emt 00:00:09]} 7. Rc1 {[%clk 00:02:08]} {[%emt 00:00:23]} Bf5
{[%clk 00:02:20]} {[%emt 00:00:18]} 8. Bxf6 {[%emt 00:00:11]} exf6 {[%clk
00:02:18]} {[%emt 00:00:01]} 9. Nge2 {[%clk 00:01:53]} {[%emt 00:00:11]} Bd6
{[%clk 00:02:15]} {[%emt 00:00:05]} 10. Qb3 {[%clk 00:01:41]} {[%emt 00:00:14]}
Qxb3 {[%clk 00:02:12]} {[%emt 00:00:05]} 11. Bxb3 {[%clk 00:01:42]} {[%emt
00:00:02]} O-O {[%clk 00:02:08]} {[%emt 00:00:05]} 12. O-O {[%clk 00:01:43]}
{[%emt 00:00:01]} Nd7 {[%clk 00:02:09]} {[%emt 00:00:02]} 13. Ng3 {[%clk
00:01:41]} {[%emt 00:00:05]} Be6 {[%clk 00:02:03]} {[%emt 00:00:07]} 14. Nce4
{[%clk 00:01:40]} {[%emt 00:00:03]} Ba3 {[%clk 00:02:01]} {[%emt 00:00:04]} 15.
Rb1 {[%clk 00:01:39]} {[%emt 00:00:04]} Nb6 {[%clk 00:01:59]} {[%emt 00:00:03]}
16. Bxe6 {[%clk 00:01:34]} {[%emt 00:00:07]} fxe6 {[%clk 00:01:59]} {[%emt
00:00:02]} 17. Rb3 {[%clk 00:01:36]} Be7 {[%clk 00:01:54]} {[%emt 00:00:07]} 18.
Rc1 {[%clk 00:01:33]} {[%emt 00:00:05]} Rab8 {[%clk 00:01:54]} {[%emt
00:00:02]} 19. Nc5 {[%clk 00:01:34]} {[%emt 00:00:02]} Bxc5 {[%clk 00:01:52]}
{[%emt 00:00:04]} 20. Rxc5 {[%clk 00:01:35]} {[%emt 00:00:01]} Kf7 {[%clk
00:01:49]} {[%emt 00:00:05]} 21. Ne4 {[%clk 00:01:36]} {[%emt 00:00:01]} Rfd8
{[%clk 00:01:48]} {[%emt 00:00:02]} 22. Ra5 {[%clk 00:01:29]} {[%emt 00:00:09]}
Ra8 {[%clk 00:01:42]} {[%emt 00:00:09]} 23. Nc5 {[%clk 00:01:22]} {[%emt
00:00:09]} Rdb8 {[%clk 00:01:34]} {[%emt 00:00:09]} 24. Kf1 {[%clk 00:01:13]}
{[%emt 00:00:12]} Ke7 {[%clk 00:01:34]} {[%emt 00:00:01]} 25. Ke2 Nc4 {[%emt
00:00:10]} 26. Ra4 {[%clk 00:00:55]} {[%emt 00:00:09]} b5 {[%clk 00:01:30]}
{[%emt 00:00:07]} 27. Raa3 {[%clk 00:00:31]} {[%emt 00:00:26]} Nxa3 {[%emt
00:00:03]} 28. Rxa3 a5 {[%clk 00:01:28]} {[%emt 00:00:02]} 29. Kd3 {[%clk
00:00:32]} {[%emt 00:00:02]} a4 {[%clk 00:01:22]} {[%emt 00:00:08]} 30. Rc3
{[%clk 00:00:32]} {[%emt 00:00:02]} b4 {[%clk 00:01:23]} {[%emt 00:00:02]} 31.
Rc1 {[%clk 00:00:19]} {[%emt 00:00:16]} Rb5 {[%clk 00:01:20]} {[%emt 00:00:04]}
32. Kc4 {[%clk 00:00:13]} {[%emt 00:00:08]} b3 {[%clk 00:01:19]} {[%emt
00:00:03]} 33. axb3 {[%clk 00:00:09]} {[%emt 00:00:07]} axb3 {[%clk 00:01:20]}
{[%emt 00:00:01]} 34. Rb1 {[%clk 00:00:08]} {[%emt 00:00:04]} Ra2 {[%clk
00:01:16]} {[%emt 00:00:05]} 35. Nd3 {[%emt 00:00:10]} Rc2# {[%emt 00:00:06]}
0-1

[Event "MČR v bleskovém šachu družstev 2019"]
[Site "Teplice, Czech Republic"]
[Date "2019.09.14"]
[Round "2.12"]
[White "Duran, Tomas"]
[Black "Trejbal, Jindrich"]
[Result "0-1"]
[TimeControl "3 mim. + 2 s"]
[BlackFideId "368792"]
[WhiteElo "2135"]
[BlackElo "1979"]

1. e4 {[%clk 00:03:02]} {[%emt 00:00:02]} e5 {[%clk 00:03:03]} {[%emt
00:00:01]} 2. Nf3 {[%clk 00:03:02]} {[%emt 00:00:01]} Nc6 {[%clk 00:03:04]}
{[%emt 00:00:02]} 3. Bc4 {[%clk 00:03:03]} {[%emt 00:00:01]} Bc5 {[%clk
00:03:05]} {[%emt 00:00:01]} 4. O-O {[%clk 00:03:03]} {[%emt 00:00:02]} d6
{[%clk 00:03:06]} {[%emt 00:00:01]} 5. h3 {[%emt 00:00:03]} Nf6 {[%clk
00:03:06]} 6. Re1 {[%clk 00:02:55]} {[%emt 00:00:10]} O-O {[%clk 00:03:06]}
{[%emt 00:00:02]} 7. Nc3 {[%clk 00:02:54]} {[%emt 00:00:03]} h6 {[%clk
00:03:06]} {[%emt 00:00:02]} 8. Na4 {[%clk 00:02:51]} {[%emt 00:00:04]} Bb6
{[%clk 00:03:04]} {[%emt 00:00:04]} 9. c3 {[%clk 00:02:46]} {[%emt 00:00:07]}
Be6 {[%clk 00:02:59]} {[%emt 00:00:06]} 10. Bf1 {[%clk 00:02:41]} {[%emt
00:00:07]} Qe7 {[%clk 00:02:50]} {[%emt 00:00:12]} 11. d3 {[%clk 00:02:38]}
{[%emt 00:00:06]} Rad8 {[%clk 00:02:50]} {[%emt 00:00:01]} 12. Nxb6 {[%clk
00:02:34]} {[%emt 00:00:06]} axb6 {[%clk 00:02:50]} {[%emt 00:00:01]} 13. Qc2
{[%clk 00:02:29]} {[%emt 00:00:07]} d5 {[%clk 00:02:48]} {[%emt 00:00:04]} 14.
exd5 {[%clk 00:01:53]} {[%emt 00:00:38]} Bxd5 {[%clk 00:02:48]} {[%emt
00:00:01]} 15. Nxe5 {[%clk 00:01:46]} {[%emt 00:00:09]} Nxe5 {[%clk 00:02:34]}
{[%emt 00:00:17]} 16. Bf4 {[%clk 00:01:47]} {[%emt 00:00:01]} Nfd7 {[%clk
00:02:25]} {[%emt 00:00:11]} 17. d4 {[%clk 00:01:48]} {[%emt 00:00:01]} f6
{[%clk 00:02:26]} 18. dxe5 {[%clk 00:01:28]} {[%emt 00:00:22]} fxe5 {[%clk
00:02:22]} {[%emt 00:00:06]} 19. Bg3 {[%clk 00:01:21]} {[%emt 00:00:10]} Rde8
{[%clk 00:02:10]} {[%emt 00:00:13]} 20. c4 {[%clk 00:01:20]} {[%emt 00:00:03]}
Qc5 {[%clk 00:01:50]} {[%emt 00:00:22]} 21. b4 {[%clk 00:01:05]} {[%emt
00:00:17]} Qc6 {[%clk 00:01:44]} {[%emt 00:00:08]} 22. Rad1 {[%clk 00:01:00]}
{[%emt 00:00:07]} Bf7 {[%clk 00:01:25]} {[%emt 00:00:21]} 23. Qd3 {[%clk
00:00:56]} {[%emt 00:00:06]} Re7 {[%clk 00:01:20]} {[%emt 00:00:07]} 24. Bh4
{[%clk 00:00:54]} {[%emt 00:00:04]} Nf6 {[%clk 00:01:17]} {[%emt 00:00:04]} 25.
a3 {[%clk 00:00:39]} {[%emt 00:00:17]} Rd7 {[%clk 00:00:56]} {[%emt 00:00:24]}
26. Qc3 {[%clk 00:00:39]} {[%emt 00:00:02]} Rxd1 {[%clk 00:00:43]} {[%emt
00:00:15]} 27. Rxd1 {[%clk 00:00:40]} e4 {[%clk 00:00:44]} 28. Qe5 {[%clk
00:00:37]} {[%emt 00:00:05]} Bxc4 {[%clk 00:00:31]} {[%emt 00:00:15]} 29. Rc1
{[%clk 00:00:31]} {[%emt 00:00:08]} b5 {[%clk 00:00:32]} 30. a4 {[%clk
00:00:31]} {[%emt 00:00:02]} Qd5 {[%clk 00:00:13]} {[%emt 00:00:21]} 31. Qxc7
{[%clk 00:00:28]} {[%emt 00:00:05]} Bxf1 {[%clk 00:00:13]} {[%emt 00:00:02]} 32.
Rxf1 {[%clk 00:00:23]} {[%emt 00:00:07]} bxa4 {[%clk 00:00:14]} {[%emt
00:00:01]} 33. Ra1 {[%clk 00:00:20]} {[%emt 00:00:05]} e3 {[%clk 00:00:11]}
{[%emt 00:00:05]} 34. fxe3 {[%clk 00:00:19]} {[%emt 00:00:03]} Ne4 {[%clk
00:00:13]} 35. Qe7 {[%clk 00:00:09]} {[%emt 00:00:12]} Nc3 {[%clk 00:00:12]}
{[%emt 00:00:03]} 36. Kh1 {[%clk 00:00:03]} {[%emt 00:00:09]} Ne2 {[%clk
00:00:11]} {[%emt 00:00:03]} 37. Re1 {[%emt 00:00:04]} Nf4 {[%emt 00:00:01]} 38.
Kh2 Qxg2# {[%emt 00:00:01]} 0-1

[Event "MČR v bleskovém šachu družstev 2019"]
[Site "Teplice, Czech Republic"]
[Date "2019.09.14"]
[Round "2.13"]
[White "Lavrincik, Radek"]
[Black "Rubes, Jan"]
[Result "0-1"]
[TimeControl "3 mim. + 2 s"]
[BlackTitle "FM"]
[WhiteFideId "383260"]
[BlackFideId "338176"]
[WhiteElo "1606"]
[BlackElo "2316"]

1. e4 {[%clk 00:03:02]} {[%emt 00:19:56]} c5 {[%clk 00:03:02]} {[%emt
00:00:06]} 2. Nf3 {[%clk 00:03:03]} Nc6 {[%clk 00:03:02]} {[%emt 00:00:02]} 3.
d4 {[%clk 00:03:04]} {[%emt 00:00:01]} cxd4 {[%clk 00:03:02]} {[%emt 00:00:02]}
4. Nxd4 {[%clk 00:03:05]} {[%emt 00:00:01]} e5 {[%clk 00:03:03]} {[%emt
00:00:01]} 5. Nb3 {[%clk 00:03:04]} {[%emt 00:00:02]} Nf6 {[%clk 00:03:03]}
{[%emt 00:00:02]} 6. Nc3 {[%clk 00:03:05]} {[%emt 00:00:01]} Bb4 {[%clk
00:03:04]} 7. f3 {[%clk 00:02:54]} {[%emt 00:00:14]} O-O {[%clk 00:02:15]}
{[%emt 00:00:51]} 8. Bd2 {[%clk 00:02:55]} {[%emt 00:00:01]} a6 {[%clk
00:01:54]} {[%emt 00:00:24]} 9. a3 {[%clk 00:02:55]} {[%emt 00:00:02]} Be7
{[%clk 00:01:55]} 10. Bd3 {[%clk 00:02:26]} {[%emt 00:00:31]} d6 {[%clk
00:01:48]} {[%emt 00:00:09]} 11. Qe2 {[%clk 00:01:58]} {[%emt 00:00:30]} Be6
{[%clk 00:01:49]} {[%emt 00:00:02]} 12. Bc4 {[%clk 00:01:52]} {[%emt 00:00:08]}
b5 {[%clk 00:01:48]} {[%emt 00:00:02]} 13. Bxe6 {[%clk 00:01:17]} {[%emt
00:00:37]} fxe6 {[%clk 00:01:49]} {[%emt 00:00:01]} 14. O-O {[%clk 00:01:18]}
{[%emt 00:00:02]} Nh5 {[%clk 00:01:31]} {[%emt 00:00:20]} 15. Rad1 {[%clk
00:00:55]} {[%emt 00:00:25]} Qe8 {[%clk 00:01:27]} {[%emt 00:00:06]} 16. Qf2
{[%clk 00:00:43]} {[%emt 00:00:13]} Qg6 {[%clk 00:01:22]} {[%emt 00:00:07]} 17.
Ne2 {[%clk 00:00:31]} {[%emt 00:00:14]} Rac8 {[%clk 00:00:54]} {[%emt
00:00:30]} 18. Rc1 {[%clk 00:00:32]} {[%emt 00:00:01]} Bg5 {[%clk 00:00:51]}
{[%emt 00:00:05]} 19. Bxg5 {[%clk 00:00:31]} {[%emt 00:00:04]} Qxg5 {[%clk
00:00:52]} {[%emt 00:00:01]} 20. c3 {[%clk 00:00:32]} Nf6 {[%clk 00:00:48]}
{[%emt 00:00:06]} 21. Qg3 {[%clk 00:00:33]} {[%emt 00:00:01]} Qe3+ {[%clk
00:00:47]} {[%emt 00:00:03]} 22. Qf2 {[%clk 00:00:34]} {[%emt 00:00:01]} Qh6
{[%clk 00:00:42]} {[%emt 00:00:07]} 23. Qg3 {[%clk 00:00:30]} {[%emt 00:00:06]}
Qe3+ {[%clk 00:00:29]} {[%emt 00:00:15]} 24. Qf2 {[%clk 00:00:31]} {[%emt
00:00:01]} Ng4 {[%clk 00:00:30]} {[%emt 00:00:01]} 25. Qxe3 {[%clk 00:00:31]}
{[%emt 00:00:02]} Nxe3 {[%clk 00:00:31]} 26. Kf2 {[%clk 00:00:32]} {[%emt
00:00:01]} Nxf1 {[%clk 00:00:32]} {[%emt 00:00:01]} 27. Rxf1 {[%clk 00:00:33]}
Rfd8 {[%clk 00:00:33]} 28. Rd1 {[%clk 00:00:35]} {[%emt 00:00:01]} Kf7 {[%clk
00:00:32]} {[%emt 00:00:02]} 29. Ng3 {[%clk 00:00:28]} {[%emt 00:00:09]} g6
{[%clk 00:00:32]} {[%emt 00:00:02]} 30. h4 {[%clk 00:00:29]} {[%emt 00:00:01]}
d5 {[%clk 00:00:31]} {[%emt 00:00:02]} 31. exd5 {[%clk 00:00:25]} {[%emt
00:00:06]} exd5 {[%clk 00:00:32]} {[%emt 00:00:01]} 32. Re1 {[%clk 00:00:26]}
d4 {[%clk 00:00:26]} {[%emt 00:00:09]} 33. cxd4 {[%clk 00:00:14]} {[%emt
00:00:13]} Nxd4 {[%clk 00:00:26]} {[%emt 00:00:02]} 34. Nxd4 {[%clk 00:00:13]}
{[%emt 00:00:03]} exd4 {[%clk 00:00:27]} {[%emt 00:00:01]} 35. Rd1 {[%clk
00:00:14]} Rc2+ {[%clk 00:00:28]} {[%emt 00:00:02]} 36. Ke1 {[%clk 00:00:15]}
Rxb2 {[%emt 00:00:03]} 0-1

[Event "MČR v bleskovém šachu družstev 2019"]
[Site "Teplice, Czech Republic"]
[Date "2019.09.14"]
[Round "2.14"]
[White "Hadraba, Vladimir"]
[Black "Lavrincik, Pavel"]
[Result "1-0"]
[TimeControl "3 mim. + 2 s"]
[WhiteFideId "301663"]
[BlackFideId "320188"]
[WhiteElo "2095"]
[BlackElo "1772"]

1. e4 {[%clk 00:03:02]} {[%emt 00:00:01]} d6 {[%clk 00:03:03]} {[%emt
00:00:02]} 2. d4 {[%clk 00:03:03]} {[%emt 00:00:01]} Nf6 {[%clk 00:03:04]}
{[%emt 00:00:01]} 3. Nc3 {[%clk 00:03:03]} {[%emt 00:00:02]} g6 {[%clk
00:03:05]} 4. Nf3 {[%clk 00:03:03]} {[%emt 00:00:02]} Bg7 {[%clk 00:03:06]} 5.
Be2 {[%clk 00:03:02]} {[%emt 00:00:04]} O-O {[%clk 00:03:05]} {[%emt 00:00:02]}
6. O-O {[%clk 00:03:02]} {[%emt 00:00:02]} Nbd7 {[%clk 00:02:59]} {[%emt
00:00:07]} 7. Bg5 {[%clk 00:02:55]} {[%emt 00:00:09]} c6 {[%clk 00:02:51]}
{[%emt 00:00:11]} 8. a4 {[%clk 00:02:53]} {[%emt 00:00:04]} Qc7 {[%clk
00:02:48]} {[%emt 00:00:04]} 9. Re1 {[%clk 00:02:46]} {[%emt 00:00:10]} e5
{[%clk 00:02:41]} {[%emt 00:00:09]} 10. Qd2 {[%clk 00:02:36]} {[%emt 00:00:12]}
Re8 {[%clk 00:02:22]} {[%emt 00:00:21]} 11. dxe5 {[%clk 00:02:18]} {[%emt
00:00:20]} dxe5 {[%clk 00:02:15]} {[%emt 00:00:08]} 12. Bc4 {[%clk 00:02:08]}
{[%emt 00:00:12]} Nb6 {[%clk 00:02:04]} {[%emt 00:00:13]} 13. Bb3 {[%clk
00:02:05]} {[%emt 00:00:06]} Bg4 {[%clk 00:02:02]} {[%emt 00:00:04]} 14. Qe3
{[%clk 00:01:50]} {[%emt 00:00:17]} Rad8 {[%clk 00:01:56]} {[%emt 00:00:08]} 15.
h3 {[%clk 00:01:45]} {[%emt 00:00:08]} Bxf3 {[%clk 00:01:55]} {[%emt 00:00:02]}
16. Qxf3 {[%clk 00:01:45]} {[%emt 00:00:02]} Nh5 {[%clk 00:01:33]} {[%emt
00:00:25]} 17. Bxd8 {[%clk 00:01:42]} {[%emt 00:00:05]} Rxd8 {[%clk 00:01:30]}
{[%emt 00:00:05]} 18. g3 {[%clk 00:01:32]} {[%emt 00:00:13]} Qd7 {[%clk
00:01:19]} {[%emt 00:00:12]} 19. Rad1 {[%clk 00:01:26]} {[%emt 00:00:08]} Qe7
{[%clk 00:01:13]} {[%emt 00:00:08]} 20. Rxd8+ {[%clk 00:01:19]} {[%emt
00:00:09]} Qxd8 {[%clk 00:01:14]} {[%emt 00:00:01]} 21. Qxf7+ {[%clk 00:01:19]}
{[%emt 00:00:02]} Kh8 {[%clk 00:01:11]} {[%emt 00:00:05]} 22. Rd1 {[%clk
00:01:12]} {[%emt 00:00:09]} Qc8 {[%clk 00:01:00]} {[%emt 00:00:13]} 23. a5
{[%clk 00:01:04]} {[%emt 00:00:10]} Na8 {[%clk 00:00:48]} {[%emt 00:00:14]} 24.
Rd7 {[%clk 00:01:02]} {[%emt 00:00:04]} 1-0

[Event "MČR v bleskovém šachu družstev 2019"]
[Site "Teplice, Czech Republic"]
[Date "2019.09.14"]
[Round "2.15"]
[White "Harasta, Frantisek"]
[Black "Kral, David"]
[Result "0-1"]
[TimeControl "3 mim. + 2 s"]
[WhiteFideId "380660"]
[BlackFideId "326097"]
[WhiteElo "1605"]
[BlackElo "2028"]

1. c4 {[%emt 00:21:26]} c5 2. Nc3 {[%emt 00:00:01]} Nc6 3. Nf3 {[%emt
00:00:03]} e5 {[%emt 00:00:01]} 4. d3 d6 {[%emt 00:00:01]} 5. g3 {[%emt
00:00:05]} f5 6. Bg2 {[%emt 00:00:05]} Nf6 7. Bd2 {[%emt 00:00:05]} Be7 {[%emt
00:00:01]} 8. O-O {[%emt 00:00:02]} O-O {[%emt 00:00:02]} 9. e3 {[%emt
00:00:16]} h6 {[%emt 00:00:02]} 10. h4 {[%emt 00:00:03]} Ng4 {[%emt 00:00:04]}
11. d4 {[%emt 00:00:19]} e4 {[%emt 00:00:07]} 12. Nh2 {[%emt 00:00:11]} g5
{[%emt 00:00:13]} 13. hxg5 {[%emt 00:00:13]} hxg5 {[%emt 00:00:02]} 14. Nxg4
{[%emt 00:00:21]} fxg4 {[%emt 00:00:01]} 15. Nxe4 {[%emt 00:00:08]} cxd4 {[%emt
00:00:11]} 16. exd4 {[%emt 00:00:04]} Nxd4 {[%emt 00:00:05]} 17. Bc3 {[%emt
00:00:14]} Nf5 {[%emt 00:00:47]} 18. Qd5+ {[%emt 00:00:05]} Rf7 {[%emt
00:00:26]} 19. Rad1 {[%emt 00:00:01]} Qf8 {[%emt 00:00:15]} 20. f4 {[%emt
00:00:14]} gxf3 {[%emt 00:00:10]} 21. Bxf3 {[%emt 00:00:07]} Qh6 {[%emt
00:00:04]} 22. Kg2 {[%emt 00:00:24]} Ng7 {[%emt 00:00:39]} 23. Kf2 {[%emt
00:00:05]} 0-1

[Event "MČR v bleskovém šachu družstev 2019"]
[Site "Teplice, Czech Republic"]
[Date "2019.09.14"]
[Round "2.16"]
[White "Krutsky, Martin"]
[Black "Jakus, Lubomir"]
[Result "1-0"]
[TimeControl "3 mim. + 2 s"]
[WhiteFideId "361526"]
[BlackFideId "343374"]
[WhiteElo "1974"]
[BlackElo "1506"]

1. e4 {[%clk 00:03:02]} {[%emt 00:00:01]} e5 {[%clk 00:03:00]} {[%emt
00:00:05]} 2. Nf3 {[%clk 00:03:02]} {[%emt 00:00:02]} Nc6 {[%clk 00:03:00]}
{[%emt 00:00:01]} 3. Bb5 {[%clk 00:03:03]} a6 {[%clk 00:02:59]} {[%emt
00:00:03]} 4. Ba4 {[%clk 00:03:04]} Nf6 {[%clk 00:02:59]} {[%emt 00:00:02]} 5.
O-O {[%clk 00:03:04]} {[%emt 00:00:02]} Be7 {[%clk 00:02:48]} {[%emt 00:00:13]}
6. Re1 {[%clk 00:03:03]} {[%emt 00:00:04]} d6 {[%clk 00:02:42]} {[%emt
00:00:08]} 7. h3 {[%clk 00:03:00]} {[%emt 00:00:05]} O-O {[%clk 00:02:41]}
{[%emt 00:00:03]} 8. c3 {[%emt 00:00:17]} Bd7 {[%clk 00:02:27]} 9. d4 {[%clk
00:02:59]} {[%emt 00:00:03]} b5 {[%clk 00:02:19]} {[%emt 00:00:09]} 10. Bc2
{[%clk 00:02:49]} {[%emt 00:00:13]} exd4 {[%clk 00:02:11]} {[%emt 00:00:11]} 11.
cxd4 {[%clk 00:02:48]} {[%emt 00:00:03]} Re8 {[%clk 00:01:59]} {[%emt
00:00:13]} 12. Nbd2 {[%clk 00:02:44]} {[%emt 00:00:07]} Bc8 {[%clk 00:01:35]}
{[%emt 00:00:26]} 13. Nf1 {[%clk 00:02:42]} {[%emt 00:00:03]} Bb7 {[%clk
00:01:34]} {[%emt 00:00:03]} 14. Ng3 {[%clk 00:02:42]} {[%emt 00:00:02]} Nb8
{[%clk 00:01:07]} {[%emt 00:00:27]} 15. Qd3 {[%clk 00:02:12]} {[%emt 00:00:34]}
Bf8 {[%clk 00:00:40]} {[%emt 00:00:30]} 16. Bg5 {[%clk 00:01:53]} {[%emt
00:00:21]} h6 {[%clk 00:00:24]} {[%emt 00:00:17]} 17. Bxf6 {[%clk 00:01:23]}
{[%emt 00:00:32]} Qxf6 {[%clk 00:00:24]} {[%emt 00:00:02]} 18. e5 {[%clk
00:01:24]} {[%emt 00:00:01]} dxe5 {[%clk 00:00:17]} {[%emt 00:00:09]} 19. Qh7#
{[%emt 00:00:02]} 1-0

[Event "MČR v bleskovém šachu družstev 2019"]
[Site "Teplice, Czech Republic"]
[Date "2019.09.14"]
[Round "2.18"]
[White "Dvorak, Jan"]
[Black "Bohdal, Jan"]
[Result "1-0"]
[TimeControl "3 mim. + 2 s"]
[WhiteFideId "314870"]
[BlackFideId "14909766"]
[WhiteElo "2229"]
[BlackElo "1879"]

1. d4 {[%clk 00:03:03]} d5 {[%clk 00:03:03]} {[%emt 00:00:01]} 2. c4 {[%clk
00:03:04]} {[%emt 00:00:02]} c5 {[%clk 00:03:04]} 3. dxc5 {[%clk 00:03:00]}
{[%emt 00:00:06]} d4 {[%clk 00:03:05]} 4. Nf3 {[%clk 00:02:56]} {[%emt
00:00:07]} Nc6 {[%clk 00:03:06]} {[%emt 00:00:01]} 5. g3 {[%clk 00:02:57]}
{[%emt 00:00:02]} e5 {[%clk 00:03:06]} 6. Bg2 {[%clk 00:02:54]} {[%emt
00:00:06]} Bxc5 {[%clk 00:03:04]} {[%emt 00:00:03]} 7. O-O {[%clk 00:02:54]}
{[%emt 00:00:02]} Nge7 {[%clk 00:02:58]} {[%emt 00:00:08]} 8. b4 {[%clk
00:02:54]} {[%emt 00:00:02]} Bxb4 {[%clk 00:02:44]} {[%emt 00:00:17]} 9. Qa4
{[%clk 00:02:54]} {[%emt 00:00:01]} O-O {[%clk 00:02:40]} {[%emt 00:00:06]} 10.
Nxe5 {[%clk 00:02:52]} {[%emt 00:00:05]} Nxe5 {[%clk 00:02:30]} {[%emt
00:00:11]} 11. Qxb4 {[%clk 00:02:52]} {[%emt 00:00:02]} Be6 {[%clk 00:02:16]}
{[%emt 00:00:15]} 12. Na3 {[%clk 00:02:48]} {[%emt 00:00:07]} Rc8 {[%clk
00:01:59]} {[%emt 00:00:19]} 13. Qxb7 {[%clk 00:02:29]} {[%emt 00:00:21]} Rc7
{[%clk 00:01:55]} {[%emt 00:00:06]} 14. Qb2 {[%clk 00:02:15]} {[%emt 00:00:14]}
Nxc4 {[%clk 00:01:42]} {[%emt 00:00:16]} 15. Nxc4 {[%clk 00:02:16]} {[%emt
00:00:02]} Rxc4 {[%clk 00:01:38]} {[%emt 00:00:06]} 16. Bg5 {[%clk 00:02:10]}
{[%emt 00:00:08]} Qd7 {[%clk 00:01:28]} {[%emt 00:00:12]} 17. Rfd1 {[%clk
00:02:01]} {[%emt 00:00:12]} Ng6 {[%clk 00:01:23]} {[%emt 00:00:07]} 18. Rac1
{[%clk 00:01:55]} {[%emt 00:00:07]} Rxc1 {[%clk 00:01:18]} {[%emt 00:00:07]} 19.
Bxc1 {[%clk 00:01:55]} {[%emt 00:00:02]} Rd8 {[%clk 00:01:02]} {[%emt
00:00:17]} 20. Be3 {[%clk 00:01:48]} {[%emt 00:00:10]} Qa4 {[%clk 00:01:00]}
{[%emt 00:00:04]} 21. Rd2 {[%clk 00:01:22]} {[%emt 00:00:28]} Ne5 {[%clk
00:00:44]} {[%emt 00:00:18]} 22. Rxd4 {[%clk 00:01:18]} {[%emt 00:00:06]} Qe8
{[%clk 00:00:12]} {[%emt 00:00:35]} 23. Rxd8 {[%clk 00:01:15]} {[%emt
00:00:04]} Qxd8 {[%clk 00:00:13]} {[%emt 00:00:02]} 24. Qxe5 {[%clk 00:01:10]}
{[%emt 00:00:07]} g6 {[%clk 00:00:12]} {[%emt 00:00:02]} 25. Bd4 {[%clk
00:01:08]} {[%emt 00:00:04]} Kf8 {[%clk 00:00:09]} {[%emt 00:00:04]} 26. Qh8+
{[%clk 00:01:07]} {[%emt 00:00:04]} Ke7 {[%clk 00:00:10]} {[%emt 00:00:02]} 27.
Bf6+ {[%clk 00:01:08]} Ke8 {[%emt 00:00:05]} 1-0